bitfinex-derivatives/quotes_ETHF0:USTF0_20250213
["timestamp","ask_amount","ask_price","bid_price","bid_amount"]
[1739423821363,0.73614,2716.5,2716.2,0.73619]
[1739423821564,0.73614,2716.5,2716.3,0.73618]
[1739423821865,0.73616,2716.4,2716.1,0.74174039]
[1739423822068,0.73611,2716.6,2716.1,0.00552039]
[1739423822255,3.2078,2716.8,2716.1,0.00552039]
[1739423822567,0.73609,2716.7,2716.4,0.73614]
[1739423822865,3.2078,2716.8,2716.1,0.00552039]
[1739423823066,0.73618,2716.4,2716.1,0.74174039]
[1739423823568,0.73618,2716.4,2716.2,40.8]
[1739423823770,3.2078,2716.8,2716.2,40.8]
[1739423823966,0.73615,2716.5,2716.2,40.8]
[1739423824267,3.2078,2716.8,2716.2,41.5362]
[1739423824468,3.2078,2716.8,2716.2,40.8]
[1739423824669,0.73614,2716.5,2716.2,40.8]
[1739423824868,3.2078,2716.8,2716.2,41.5362]
[1739423825268,0.73614,2716.5,2716.2,41.5362]
[1739423825669,3.2078,2716.8,2716.2,40.8]
[1739423825962,0.73618,2716.3,2716.2,40.8]
[1739423826170,0.73621,2716.2,2716.1,0.00552039]
[1739423826358,1.8402,2716.7,2716.1,0.00552039]
[1739423826560,0.73621,2716.3,2716.1,0.00552039]
[1739423826761,0.73621,2716.3,2716.1,0.74176039]
[1739423826956,0.73621,2716.3,2716.1,0.00552039]
[1739423827268,0.73618,2716.4,2716.1,0.00552039]
[1739423827566,3.2078,2716.8,2716.2,0.73619]
[1739423827757,0.73616,2716.4,2716.2,0.73619]
[1739423827961,0.7362,2716.3,2716.1,0.00552039]
[1739423828163,3.2078,2716.8,2716.1,0.00552039]
[1739423828463,3.94401,2716.2,2716.1,0.00552039]
[1739423828865,3.2078,2716.2,2715.4,41.53641]
[1739423829163,3.2078,2716.2,2715.3,0.5414]
[1739423829164,3.2078,2715.9,2715.3,0.5414]
[1739423829570,3.2078,2715.9,2715.2,0.5828]
[1739423829770,0.73645,2715.3,2715.2,0.5828]
[1739423830070,0.73647,2715.3,2715.0,0.74204039]
[1739423830373,0.73651,2715.1,2715.0,0.00552039]
[1739423830875,0.00364463,2715.5,2715.0,0.00552039]
[1739423831066,0.73648,2715.3,2715.0,0.74205039]
[1739423831274,1.0,2715.2,2715.0,0.00552039]
[1739423831973,0.73651,2715.1,2715.0,0.00552039]
[1739423832369,1.0,2715.2,2715.0,0.00552039]
[1739423832674,0.73651,2715.1,2715.0,0.00552039]
[1739423833071,10.8117759,2715.1,2715.0,3.9e-07]
[1739423833769,5.37474834,2715.1,2715.0,3.9e-07]
[1739423833968,11.37474834,2715.1,2715.0,3.9e-07]
[1739423834165,11.37474738,2715.1,2715.0,3.9e-07]
[1739423835268,3.2078,2714.7,2712.9,3.2078]
[1739423835467,3.2078,2713.5,2712.9,3.2078]
[1739423835668,0.73708,2713.0,2712.9,3.2078]
[1739423835864,4.01294945,2713.4,2712.6,3.2078]
[1739423836071,0.73716,2712.7,2712.6,3.2078]
[1739423836264,0.00552039,2713.3,2712.7,0.00552039]
[1739423836475,0.00552039,2713.3,2713.1,3.2078]
[1739423837075,0.00552039,2713.3,2712.8,43.21912]
[1739423837274,0.00552039,2713.3,2713.1,0.73703]
[1739423837582,1.00552039,2713.3,2713.1,0.73704]
[1739423837784,1.00552039,2713.3,2713.0,0.73707]
[1739423837987,1.00552039,2713.3,2712.9,3.2078]
[1739423838186,1.00552039,2713.3,2713.1,0.73705]
[1739423838489,1.00552039,2713.3,2713.1,0.73704]
[1739423838691,1.00552039,2713.3,2713.2,0.5574]
[1739423838889,1.74252039,2713.3,2713.2,0.5574]
[1739423839086,1.00552039,2713.3,2712.8,44.0078]
[1739423839287,0.73707,2713.1,2712.8,44.0078]
[1739423839489,1.00552039,2713.3,2712.8,3.2078]
[1739423839688,0.73713,2712.8,2712.7,0.56292039]
[1739423840592,1.73709,2713.0,2712.7,0.56292039]
[1739423840889,1.0,2713.0,2712.7,0.56292039]
[1739423841292,0.73713,2712.8,2712.7,0.56292039]
[1739423841889,1.0,2712.9,2712.7,0.56292039]
[1739423842086,1.73712,2712.9,2712.7,0.56292039]
[1739423842289,1.0,2712.9,2712.8,0.73713]
[1739423842486,1.73712,2712.9,2712.7,0.56292039]
[1739423842885,1.0,2712.9,2712.7,0.56292039]
[1739423843094,1.0,2712.9,2712.8,0.73713]
[1739423843285,1.0,2712.9,2712.7,1.30006039]
[1739423843788,1.0,2712.9,2712.7,0.56292039]
[1739423843990,1.73712,2712.9,2712.7,0.56292039]
[1739423844488,1.0,2712.9,2712.7,0.56292039]
[1739423844990,0.73713,2712.8,2712.7,0.56292039]
[1739423845395,1.0,2712.9,2712.7,1.30008039]
[1739423845591,1.73711,2712.9,2712.7,0.56292039]
[1739423845986,0.73713,2712.8,2712.7,0.56292039]
[1739423847197,1.73712,2712.9,2712.7,0.56292039]
[1739423847393,1.0,2712.9,2712.7,0.56292039]
[1739423847600,1.0,2712.9,2712.8,0.73713]
[1739423847794,0.00552039,2713.3,2713.2,0.73702]
[1739423847992,0.00552039,2713.3,2713.1,0.73703]
[1739423848298,0.73704,2713.2,2712.8,0.5404]
[1739423848503,0.73704,2713.2,2712.9,0.73709]
[1739423848798,0.00552039,2713.3,2712.9,40.8]
[1739423848991,0.00552039,2713.3,2712.7,8.09371984]
[1739423848992,0.73713,2712.8,2712.7,0.56292039]
[1739423850699,0.73713,2712.8,2712.7,0.00552039]
[1739423851394,3.2078,2713.0,2712.7,0.00552039]
[1739423852099,0.73713,2712.8,2712.7,0.00552039]
[1739423852289,3.2078,2713.0,2712.7,0.00552039]
[1739423852497,0.00552039,2713.3,2713.2,0.73702]
[1739423852692,0.74253039,2713.3,2712.9,1.1519]
[1739423852995,0.73704,2713.2,2712.9,1.1519]
[1739423853190,0.00552039,2713.3,2712.9,1.1519]
[1739423853397,0.00552039,2713.3,2713.2,0.73702]
[1739423853804,0.00552039,2713.3,2713.2,1.28692]
[1739423854496,0.73693,2713.6,2713.2,1.28692]
[1739423854497,3.2078,2714.0,2713.2,6.5499]
[1739423854702,3.94463,2714.0,2713.7,0.73687]
[1739423855001,3.94462,2714.0,2713.7,0.73688]
[1739423855202,3.2078,2714.0,2713.7,0.73687]
[1739423855402,3.2078,2714.0,2713.8,0.73685]
[1739423855601,3.2078,2714.0,2713.6,1.689]
[1739423855801,0.73688,2713.8,2713.6,1.689]
[1739423855997,3.2078,2714.0,2713.6,1.689]
[1739423856204,3.2078,2714.0,2713.4,3.2078]
[1739423856396,0.73688,2713.8,2713.4,3.94475]
[1739423856704,0.73688,2713.8,2713.5,0.73693]
[1739423857003,0.73688,2713.8,2713.4,3.94476]
[1739423857196,3.2078,2714.0,2713.5,0.73693]
[1739423857403,0.73684,2713.9,2713.6,0.7369]
[1739423857906,3.2078,2714.0,2713.5,1.29473]
[1739423858203,3.94461,2714.0,2713.7,0.73688]
[1739423858505,3.94461,2714.0,2713.6,0.7369]
[1739423858907,3.94461,2714.0,2713.5,0.5578]
[1739423859101,3.94461,2714.0,2713.6,0.73689]
[1739423859402,3.2078,2714.0,2713.5,0.5578]
[1739423859601,0.73685,2713.9,2713.6,0.73691]
[1739423859799,3.2078,2714.0,2713.5,0.5578]
[1739423860807,0.73685,2713.9,2713.6,0.73689]
[1739423861004,0.73688,2713.8,2713.5,1.29473]
[1739423861205,0.73684,2713.9,2713.6,0.73691]
[1739423861406,0.73685,2713.9,2713.6,0.73691]
[1739423861608,0.73685,2713.9,2713.7,0.73688]
[1739423861903,0.00364463,2714.1,2713.6,0.7369]
[1739423862105,0.73691,2713.7,2713.5,0.5578]
[1739423862301,0.73692,2713.6,2713.5,0.5578]
[1739423863007,0.73688,2713.8,2713.5,0.5578]
[1739423863206,0.73688,2713.8,2713.6,0.7369]
[1739423863806,0.73692,2713.6,2713.5,0.5578]
[1739423864012,3.2078,2713.8,2713.1,3.2078]
[1739423864208,0.73702,2713.2,2713.1,3.2078]
[1739423864510,0.73702,2713.2,2712.8,0.592]
[1739423864514,3.2078,2713.5,2712.4,0.5412]
[1739423864515,1.84243,2713.4,2712.4,0.5412]
[1739423864711,0.5726,2713.1,2712.4,1.0811]
[1739423865205,0.73711,2712.9,2712.4,1.0811]
[1739423865407,0.5726,2713.1,2712.4,0.5399]
[1739423866105,0.7371,2713.0,2712.7,0.74267039]
[1739423866305,0.5726,2713.1,2712.7,0.74267039]
[1739423866509,0.5726,2713.1,2712.8,0.73713]
[1739423866707,1.30966,2713.1,2712.8,0.73713]
[1739423867207,0.5726,2713.1,2712.7,0.00552039]
[1739423867406,0.5726,2713.1,2712.9,0.73709]
[1739423867714,0.5726,2713.1,2712.7,0.00552039]
[1739423867715,0.5726,2713.1,2713.0,0.73708]
[1739423868412,0.5726,2713.1,2712.9,0.7371]
[1739423868710,3.21144463,2714.1,2713.0,8.90674945]
[1739423868905,0.00364463,2714.1,2713.4,4.01294945]
[1739423869105,0.74043463,2714.1,2713.5,1.686]
[1739423869308,0.74043463,2714.1,2713.8,0.73686]
[1739423869617,0.73682,2714.0,2713.6,0.73692]
[1739423869810,0.73683,2714.0,2713.6,0.7369]
[1739423870009,3.21144463,2714.1,2713.5,1.686]
[1739423870210,0.73686,2713.9,2713.5,2.42293]
[1739423870516,3.94823463,2714.1,2713.7,0.73687]
[1739423870814,3.21144463,2714.1,2713.7,0.73687]
[1739423871014,0.73681,2714.0,2713.7,0.73687]
[1739423871206,3.94823463,2714.1,2713.7,0.73687]
[1739423871607,3.94823463,2714.1,2713.5,45.6938]
[1739423871819,3.94823463,2714.1,2713.7,0.73687]
[1739423872114,3.21144463,2714.1,2713.8,0.73684]
[1739423872312,3.21144463,2714.1,2713.5,45.6938]
[1739423872509,3.21144463,2714.1,2713.9,0.73683]
[1739423872913,3.94823463,2714.1,2713.5,45.6938]
[1739423873112,3.21144463,2714.1,2713.8,0.73684]
[1739423873514,0.74042463,2714.1,2713.8,0.73684]
[1739423873809,0.00364463,2714.1,2713.8,0.73684]
[1739423874015,0.00364463,2714.1,2713.5,4.8938]
[1739423874616,0.00364463,2714.1,2714.0,0.73681]
[1739423875112,0.00364463,2714.1,2713.9,0.73682]
[1739423875305,0.00364463,2714.1,2714.0,0.73681]
[1739423875714,0.00364463,2714.1,2714.0,2.41881]
[1739423876012,0.00364463,2714.1,2714.0,2.71485165]
[1739423876415,0.00364463,2714.1,2714.0,2.41881]
[1739423877316,3.2078,2714.4,2714.3,0.73673]
[1739423878111,0.5841,2714.9,2714.2,3.2078]
[1739423878311,3.2078,2715.4,2715.0,0.73652]
[1739423878506,0.5703,2715.3,2715.0,0.73652]
[1739423878714,0.73652,2715.1,2714.8,0.73658]
[1739423879011,0.5703,2715.3,2714.6,1.683]
[1739423879211,0.5703,2715.3,2714.6,4.8908]
[1739423879418,3.2078,2715.1,2714.6,4.8908]
[1739423879920,3.2078,2715.1,2715.0,0.73654]
[1739423880422,0.5703,2715.3,2714.9,3.2078]
[1739423880720,3.2078,2715.9,2714.9,3.2078]
[1739423880920,0.73647,2715.3,2715.0,0.73652]
[1739423881107,0.73647,2715.3,2715.0,2.42052]
[1739423881814,0.73648,2715.2,2715.0,2.42052]
[1739423882013,0.73648,2715.2,2715.0,1.684]
[1739423882319,3.77209615,2715.6,2715.0,1.684]
[1739423882515,0.73649,2715.2,2715.0,1.684]
[1739423882708,0.73647,2715.3,2715.0,2.42052]
[1739423882913,0.7365,2715.2,2714.9,0.73655]
[1739423883221,0.7365,2715.2,2714.9,2.41755]
[1739423883518,3.77209615,2715.6,2714.9,1.681]
[1739423883720,3.77209615,2715.6,2714.9,2.41755]
[1739423883921,0.73652,2715.1,2714.9,2.41755]
[1739423884715,3.77209615,2715.6,2714.9,1.681]
[1739423884916,0.73647,2715.3,2715.1,0.73651]
[1739423885223,3.2078,2715.6,2714.9,4.8888]
[1739423885416,0.73644,2715.4,2714.9,4.8888]
[1739423885725,0.73646,2715.3,2715.1,0.7365]
[1739423886019,0.73645,2715.4,2714.9,4.8888]
[1739423886223,0.5401,2715.7,2715.2,3.2078]
[1739423886416,0.73628,2716.0,2715.8,0.73631]
[1739423886611,3.2078,2716.2,2715.5,3.2078]
[1739423886822,3.2078,2716.2,2715.6,0.00552039]
[1739423887021,0.73624,2716.1,2715.6,0.00552039]
[1739423887223,3.2078,2716.2,2715.6,0.00552039]
[1739423887224,0.73627,2716.0,2715.6,0.00552039]
[1739423887421,0.73626,2716.1,2715.8,0.73632]
[1739423887723,0.73629,2716.0,2715.7,0.73634]
[1739423888223,3.2078,2716.2,2715.6,0.00552039]
[1739423888426,0.73633,2715.8,2715.6,0.74189039]
[1739423888813,3.2078,2716.2,2715.6,0.00552039]
[1739423889021,0.73632,2715.9,2715.6,0.74188039]
[1739423889415,0.73632,2715.9,2715.6,0.00552039]
[1739423889619,0.73628,2716.0,2715.7,0.73634]
[1739423889926,0.73633,2715.8,2715.6,0.74189039]
[1739423890119,0.73629,2716.0,2715.7,0.73634]
[1739423890314,0.7363,2715.9,2715.7,0.73634]
[1739423891227,0.73634,2715.8,2715.6,0.74187039]
[1739423891524,0.73631,2715.9,2715.7,0.73633]
[1739423891825,3.2078,2716.2,2715.6,0.00552039]
[1739423892227,0.73626,2716.1,2715.9,0.73627]
[1739423892524,0.73632,2715.8,2715.6,0.00552039]
[1739423892723,0.73635,2715.7,2715.6,0.00552039]
[1739423893221,3.2078,2715.9,2715.8,0.73632]
[1739423893920,3.2078,2716.2,2715.6,0.00552039]
[1739423894331,3.94403,2716.2,2716.0,0.73626]
[1739423894930,3.2078,2716.2,2715.7,40.8]
[1739423895132,3.2078,2716.2,2716.1,0.73624]
[1739423895428,0.5918,2716.3,2715.8,1.678]
[1739423895731,0.5918,2716.3,2716.1,0.73622]
[1739423896029,3.2078,2716.6,2716.0,1.84067]
[1739423896229,3.2078,2716.6,2715.9,0.5801]
[1739423896431,0.73621,2716.3,2716.0,0.73625]
[1739423896627,0.73619,2716.3,2716.0,0.73625]
[1739423896827,0.73621,2716.2,2715.9,0.5801]
[1739423897027,3.7526,2716.6,2715.9,0.5801]
[1739423897232,0.73626,2716.0,2715.9,0.5801]
[1739423897420,0.7363,2715.9,2715.7,1.68]
[1739423897625,3.7662,2716.3,2715.6,0.74188039]
[1739423897825,3.7662,2716.3,2715.6,2.42188039]
[1739423898026,0.73631,2715.9,2715.6,2.42188039]
[1739423898227,0.73623,2716.2,2715.9,0.73628]
[1739423898824,0.5584,2716.3,2715.6,1.68552039]
[1739423899030,3.7662,2716.3,2715.6,1.68552039]
[1739423899325,0.73629,2715.9,2715.7,0.73633]
[1739423899529,0.73629,2715.9,2715.6,1.68552039]
[1739423899725,0.73629,2715.9,2715.6,2.42188039]
[1739423900032,0.7363,2715.9,2715.7,0.73633]
[1739423900224,0.73627,2716.0,2715.8,0.73631]
[1739423900426,3.7662,2716.3,2715.6,1.68552039]
[1739423900730,0.5584,2716.3,2715.7,1.84087]
[1739423900929,0.5584,2716.3,2716.2,0.73621]
[1739423901129,3.7526,2716.6,2715.8,9.06150945]
[1739423901332,3.7526,2716.6,2715.9,0.539]
[1739423901539,0.73616,2716.4,2715.9,0.539]
[1739423901734,0.73615,2716.5,2716.2,0.7362]
[1739423902227,0.73615,2716.5,2716.3,0.73617]
[1739423902422,0.73615,2716.5,2716.0,0.5648]
[1739423902423,3.7526,2716.6,2716.0,1.1234]
[1739423902732,3.7526,2716.6,2716.5,0.73613]
[1739423903130,3.2078,2716.6,2716.5,0.73613]
[1739423904030,3.7472,2717.2,2716.4,7.22074945]
[1739423904231,3.7472,2717.2,2716.9,0.736]
[1739423904425,0.73598,2717.1,2716.7,5.69194945]
[1739423904628,0.73598,2717.1,2716.8,0.73603]
[1739423905029,3.7472,2717.2,2716.7,2.41505]
[1739423905229,0.73602,2716.9,2716.7,1.679]
[1739423905432,3.7472,2717.2,2716.7,1.679]
[1739423905743,0.73598,2717.1,2716.8,41.53604]
[1739423906034,3.7472,2717.2,2716.8,40.8]
[1739423906432,0.73602,2716.9,2716.8,40.8]
[1739423906624,0.73597,2717.1,2716.8,40.8]
[1739423906831,0.73601,2717.0,2716.7,2.41506]
[1739423907132,0.73601,2717.0,2716.7,1.679]
[1739423907337,3.7472,2717.2,2716.7,1.679]
[1739423907538,3.7472,2717.2,2716.5,0.5772]
[1739423907743,0.73613,2716.5,2716.4,3.2078]
[1739423908036,0.73621,2716.3,2716.1,0.5383]
[1739423908237,0.7362,2716.3,2716.1,0.5383]
[1739423908436,0.73621,2716.2,2716.1,0.5383]
[1739423908634,0.7362,2716.3,2716.1,0.5383]
[1739423908835,0.576,2716.7,2716.1,0.5383]
[1739423909048,0.576,2716.7,2716.1,1.27452]
[1739423909049,0.73617,2716.4,2716.1,1.27452]
[1739423909642,0.576,2716.7,2716.1,0.5383]
[1739423909940,0.7362,2716.3,2716.1,0.5383]
[1739423910143,4.8868,2716.8,2716.1,4.55124945]
[1739423910144,3.2078,2716.8,2716.1,4.55124945]
[1739423910342,0.73609,2716.7,2716.4,0.73614]
[1739423910540,0.576,2717.1,2716.4,0.73614]
[1739423910741,0.7361,2716.7,2716.2,1.679]
[1739423910942,3.7472,2717.2,2716.4,3.2078]
[1739423911131,0.55704659,2717.0,2716.2,1.679]
[1739423911335,0.73605,2716.8,2716.5,0.73611]
[1739423911639,0.73609,2716.7,2716.4,0.73614]
[1739423911839,0.73601,2717.0,2716.7,0.73606]
[1739423912043,0.73604,2716.9,2716.6,0.73609]
[1739423912535,3.7472,2717.2,2716.4,3.2078]
[1739423912739,3.7472,2717.2,2716.3,0.73617]
[1739423912740,1.83992,2717.1,2716.3,0.73617]
[1739423912932,3.2078,2716.9,2716.3,3.2078]
[1739423913135,0.73611,2716.6,2716.3,3.94396]
[1739423913334,0.73611,2716.6,2716.3,3.2078]
[1739423913634,0.73613,2716.5,2716.4,40.8]
[1739423913833,3.2078,2716.9,2716.4,40.8]
[1739423914037,0.73613,2716.5,2716.4,40.8]
[1739423914244,0.73613,2716.5,2716.2,1.679]
[1739423914245,0.73615,2716.5,2716.2,1.679]
[1739423914441,3.7786,2716.9,2716.2,2.41519]
[1739423914737,0.73621,2716.2,2716.1,0.5383]
[1739423914939,0.7363,2715.9,2715.7,3.2078]
[1739423915145,0.5777,2716.1,2715.7,3.2078]
[1739423915342,0.5777,2716.1,2715.6,41.34972039]
[1739423915541,0.73635,2715.7,2715.6,0.00552039]
[1739423916447,0.55761763,2715.9,2715.3,3.2078]
[1739423916642,0.73643,2715.4,2715.3,3.2078]
[1739423917248,0.55761763,2715.9,2715.3,3.2078]
[1739423917542,0.00552039,2715.6,2715.3,3.2078]
[1739423918345,0.73643,2715.4,2715.3,3.2078]
[1739423918546,0.73647,2715.3,2715.1,0.00552039]
[1739423918847,0.73648,2715.2,2715.1,0.00552039]
[1739423919052,3.21332039,2715.6,2715.1,0.00552039]
[1739423919246,0.73644,2715.4,2715.1,0.74202039]
[1739423919652,3.21332039,2715.6,2715.1,0.74202039]
[1739423919843,0.73642,2715.5,2715.1,0.00552039]
[1739423920038,3.21332039,2715.6,2715.1,0.74202039]
[1739423920352,3.21332039,2715.6,2715.1,0.00552039]
[1739423920546,0.73643,2715.4,2715.1,0.74203039]
[1739423920943,0.73643,2715.4,2715.2,40.8]
[1739423921446,3.21332039,2715.6,2715.2,41.53647]
[1739423921647,3.21332039,2715.6,2715.2,40.8]
[1739423921850,3.94971039,2715.6,2715.3,0.73645]
[1739423922050,3.94971039,2715.6,2715.2,41.53646]
[1739423922443,3.94971039,2715.6,2715.3,0.73645]
[1739423922639,3.21332039,2715.6,2715.4,0.73643]
[1739423922951,3.94971039,2715.6,2715.3,0.73644]
[1739423923151,3.21332039,2715.6,2715.4,0.73641]
[1739423923338,3.94971039,2715.6,2715.3,0.73645]
[1739423923542,0.00552039,2715.6,2715.5,0.7364]
[1739423923847,0.73634,2715.8,2715.5,0.7364]
[1739423924042,0.5777,2716.1,2715.3,5.167192]
[1739423924242,0.73636,2715.7,2715.4,0.73642]
[1739423924546,0.5469,2716.0,2715.3,1.1558]
[1739423924850,1.8408,2715.8,2715.1,1.68852039]
[1739423925349,0.73648,2715.3,2715.1,1.68852039]
[1739423925549,0.73648,2715.3,2715.1,2.42503039]
[1739423925754,0.73648,2715.3,2715.1,1.68852039]
[1739423926050,3.7918,2715.9,2715.1,1.68852039]
[1739423926241,3.2078,2715.9,2715.3,4.011392]
[1739423926445,3.94411,2715.9,2715.6,0.73636]
[1739423926645,0.73632,2715.8,2715.5,0.73639]
[1739423927343,0.5777,2716.1,2715.7,0.73633]
[1739423927538,0.5777,2716.1,2715.6,3.2078]
[1739423927744,0.73628,2716.0,2715.7,0.73635]
[1739423927947,0.73628,2716.0,2715.7,1.30765]
[1739423928148,0.73632,2715.8,2715.7,0.5713]
[1739423928648,0.5777,2716.1,2715.7,0.5713]
[1739423928849,0.73628,2716.0,2715.7,1.30763]
[1739423929047,3.2078,2716.2,2715.7,0.5713]
[1739423929452,3.2078,2716.2,2716.0,0.73625]
[1739423930153,3.2078,2716.2,2715.7,0.5713]
[1739423930154,3.2078,2716.2,2715.7,1.30764]
[1739423930545,0.73629,2715.9,2715.7,1.30764]
[1739423930757,3.2078,2716.2,2715.7,1.30764]
[1739423930949,3.2078,2716.2,2715.7,0.5713]
[1739423931559,3.94403,2716.2,2715.7,0.5713]
[1739423931749,3.94402,2716.2,2716.0,0.73626]
[1739423931947,3.2078,2716.2,2716.0,0.73626]
[1739423932146,3.2078,2716.2,2715.8,0.73631]
[1739423932348,3.2078,2716.2,2715.7,0.5713]
[1739423932549,0.73627,2716.0,2715.8,0.73632]
[1739423932749,0.73625,2716.1,2715.9,0.73629]
[1739423932955,0.73624,2716.1,2715.9,0.73629]
[1739423933359,3.94402,2716.2,2715.9,0.73627]
[1739423933558,3.7642,2716.5,2716.3,0.73616]
[1739423933749,3.7642,2716.5,2715.9,3.2078]
[1739423933950,0.73621,2716.3,2716.0,0.73625]
[1739423934155,3.7642,2716.5,2716.0,0.73625]
[1739423934452,0.73621,2716.3,2716.0,0.73625]
[1739423934847,3.7642,2716.5,2715.7,0.5713]
[1739423935044,4.50034,2716.5,2716.3,0.73617]
[1739423935248,3.7642,2716.5,2715.9,3.2078]
[1739423935446,3.7642,2716.5,2716.3,0.73616]
[1739423935758,3.7642,2716.5,2716.4,0.73616]
[1739423935947,3.2078,2716.5,2716.4,0.73616]
[1739423937558,0.73609,2716.7,2716.3,0.5705]
[1739423937765,0.73609,2716.7,2716.5,0.73612]
[1739423938060,0.5366,2716.9,2716.4,0.73613]
[1739423938263,0.73607,2716.8,2716.3,0.5705]
[1739423938657,0.73607,2716.8,2716.6,0.7361]
[1739423939070,0.5366,2716.9,2716.3,0.5705]
[1739423939261,0.5366,2716.9,2716.4,0.73614]
[1739423939464,0.73609,2716.7,2716.5,0.73611]
[1739423940262,0.5366,2716.9,2716.3,0.5705]
[1739423940666,0.73618,2716.4,2716.2,3.2078]
[1739423940966,0.7361,2716.7,2716.4,0.73613]
[1739423941264,0.73609,2716.7,2716.2,6.40634261]
[1739423941665,0.73609,2716.7,2716.5,0.73613]
[1739423942064,0.73608,2716.7,2716.5,0.73611]
[1739423942458,0.5366,2716.9,2716.2,6.40634261]
[1739423942769,0.5366,2716.9,2716.2,3.2078]
[1739423942770,0.73618,2716.3,2716.2,3.2078]
[1739423942963,5.04799,2716.7,2716.2,3.2078]
[1739423943164,0.73618,2716.3,2716.2,3.2078]
[1739423943364,3.2078,2716.7,2716.2,3.2078]
[1739423943567,0.73618,2716.3,2716.2,3.2078]
[1739423944660,3.2078,2716.4,2715.7,2.41233]
[1739423944863,0.5403,2716.3,2715.7,1.676]
[1739423945064,0.73627,2716.0,2715.8,0.73632]
[1739423945664,0.73626,2716.1,2715.8,0.7363]
[1739423946271,0.73626,2716.1,2715.8,3.9441]
[1739423946468,0.73626,2716.1,2715.8,3.2078]
[1739423946679,0.5403,2716.3,2716.1,0.73623]
[1739423946978,0.73622,2716.2,2716.0,0.73626]
[1739423947283,3.2078,2716.4,2715.9,3.19854261]
[1739423947480,0.5399,2716.6,2715.9,3.93482261]
[1739423947677,0.73623,2716.2,2715.9,3.93482261]
[1739423947880,0.5399,2716.6,2715.9,3.93482261]
[1739423948178,1.84033,2716.5,2715.9,3.19854261]
[1739423948382,0.73615,2716.5,2715.9,3.19854261]
[1739423948580,0.5399,2716.6,2715.9,3.19854261]
[1739423948784,0.73614,2716.5,2716.3,0.73617]
[1739423948978,3.7592,2716.7,2715.9,3.19854261]
[1739423949583,0.73613,2716.6,2715.9,5.03923261]
[1739423949776,3.7592,2716.7,2715.9,5.03923261]
[1739423949777,3.7592,2716.7,2715.9,3.19854261]
[1739423949979,0.73616,2716.4,2716.2,0.7362]
[1739423950386,0.5514,2716.7,2716.2,40.8]
[1739423950586,0.73614,2716.5,2716.2,44.74399]
[1739423950781,0.5514,2716.7,2716.2,44.5888]
[1739423950782,0.73612,2716.6,2716.2,44.5888]
[1739423951087,1.28749,2716.7,2716.2,3.7888]
[1739423951281,0.7361,2716.6,2716.4,0.73614]
[1739423951486,1.28749,2716.7,2716.4,0.73614]
[1739423951682,0.5514,2716.7,2716.6,0.7361]
[1739423951885,3.2078,2716.8,2716.7,0.73607]
[1739423952080,3.2078,2716.8,2716.3,41.3528]
[1739423952283,3.2078,2716.8,2716.7,0.73607]
[1739423952480,3.2078,2716.8,2716.5,0.00552039]
[1739423952885,0.7361,2716.6,2716.5,0.00552039]
[1739423953989,5.04776,2717.1,2716.5,0.00552039]
[1739423954191,5.04776,2717.1,2716.5,0.74164039]
[1739423954385,0.73608,2716.7,2716.5,0.74164039]
[1739423954585,3.2078,2717.1,2716.5,0.74164039]
[1739423954789,3.2078,2717.1,2716.5,0.00552039]
[1739423954986,0.73606,2716.8,2716.5,0.00552039]
[1739423955193,3.2078,2717.1,2716.5,0.00552039]
[1739423955489,3.2078,2717.1,2716.5,0.74165039]
[1739423955490,0.73609,2716.7,2716.5,0.74165039]
[1739423955991,3.75896894,2717.1,2716.5,0.00552039]
[1739423956192,3.75896894,2717.1,2716.5,6.411863]
[1739423956392,0.73607,2716.8,2716.6,0.73609]
[1739423956793,3.2078,2717.1,2716.7,0.73607]
[1739423957188,3.2078,2717.1,2716.5,6.411863]
[1739423957393,0.736,2717.0,2716.8,0.73603]
[1739423957592,0.73603,2716.9,2716.7,0.73607]
[1739423957894,3.2078,2717.1,2717.0,0.73599]
[1739423958291,3.94378,2717.1,2716.9,0.5345]
[1739423958693,3.7695,2717.5,2716.9,0.5345]
[1739423958899,0.73599,2717.0,2716.9,0.5345]
[1739423959396,0.5537,2717.3,2716.9,0.5345]
[1739423959593,0.73598,2717.1,2716.9,1.27051]
[1739423959792,0.73596,2717.2,2717.0,0.73599]
[1739423959994,0.73596,2717.2,2716.9,0.5345]
[1739423960195,0.73598,2717.1,2716.9,1.2705]
[1739423960597,0.73596,2717.2,2716.9,0.5345]
[1739423960896,0.73593,2717.3,2717.0,0.73597]
[1739423961099,0.55116894,2717.4,2717.0,0.73597]
[1739423961299,0.73591,2717.3,2717.0,0.73597]
[1739423962092,0.55116894,2717.4,2717.0,0.73597]
[1739423962294,3.7695,2717.5,2717.0,0.73597]
[1739423962495,3.7695,2717.5,2716.9,0.5345]
[1739423962696,0.73599,2717.0,2716.9,2.2025]
[1739423962897,3.7695,2717.5,2716.9,2.9385]
[1739423962898,0.73596,2717.2,2716.9,2.9385]
[1739423963401,0.73596,2717.2,2717.0,0.73599]
[1739423963901,0.73598,2717.1,2716.9,2.93851]
[1739423964095,0.55116894,2717.4,2716.9,2.2025]
[1739423964301,0.73592,2717.3,2717.0,0.73597]
[1739423964501,0.73599,2717.0,2716.9,2.7675]
[1739423964703,0.73599,2717.0,2716.9,2.2025]
[1739423966895,0.73599,2717.0,2716.9,0.5345]
[1739423967098,5.04764,2717.3,2716.6,1.668]
[1739423967299,0.736,2717.0,2716.8,0.73603]
[1739423967495,0.736,2717.0,2716.9,0.73602]
[1739423967801,0.7361,2716.6,2716.5,3.21332039]
[1739423968306,0.73609,2716.7,2716.5,3.94945039]
[1739423968601,0.5385,2716.8,2716.5,3.21332039]